bitfinex-derivatives/quotes_ETHF0:USTF0_20241005
["timestamp","ask_amount","ask_price","bid_price","bid_amount"]
[1728158540356,0.75897,2395.5,2395.4,0.8323]
[1728158540959,0.75897,2395.5,2395.4,0.4109]
[1728158541962,0.33397,2395.5,2395.4,0.4109]
[1728158542162,0.886,2395.5,2395.4,0.4109]
[1728158542358,2.236,2395.6,2395.4,0.4109]
[1728158542669,2.236,2395.6,2395.4,0.74488]
[1728158543367,1.35,2395.6,2395.4,0.74488]
[1728158543662,1.35,2395.7,2395.5,0.33397]
[1728158543874,1.35,2395.7,2395.6,0.3966]
[1728158544665,1.35,2395.7,2395.6,4.571]
[1728158545261,1.35,2395.7,2395.6,4.90496]
[1728158545656,1.35,2395.7,2395.6,4.571]
[1728158546265,1.35,2395.7,2395.6,4.90496]
[1728158546660,1.35,2395.8,2395.6,4.90495]
[1728158546858,1.35,2395.8,2395.7,0.4057]
[1728158547057,1.35,2395.8,2395.7,0.73964]
[1728158547259,1.35,2395.8,2395.7,4.91404]
[1728158547567,1.35,2395.8,2395.7,4.5801]
[1728158547764,1.35,2395.8,2395.7,4.91404]
[1728158548966,1.35,2395.9,2395.7,4.91404]
[1728158549172,1.35,2395.9,2395.8,0.74183]
[1728158549368,1.35,2395.9,2395.8,4.91543]
[1728158550172,0.097,2396.3,2396.0,0.3339]
[1728158550173,1.35,2396.1,2396.0,0.3339]
[1728158550575,1.35,2396.1,2396.0,4.5075]
[1728158553667,0.33386,2396.3,2396.1,0.33388]
[1728158553874,0.33386,2396.3,2396.2,0.4071]
[1728158553875,1.35,2396.3,2396.2,0.4071]
[1728158554376,1.68386,2396.3,2396.2,0.4071]
[1728158555071,1.35,2396.3,2396.2,0.4071]
[1728158555277,1.35,2396.3,2396.2,0.74097]
[1728158573392,1.7451,2396.3,2396.2,0.74097]
[1728158589202,1.7451,2396.3,2396.2,1.83480776]
[1728158589504,1.7451,2396.3,2396.2,3.50362872]
[1728158590498,1.7451,2396.3,2396.2,3.09652872]
[1728158590900,2.07896,2396.3,2396.2,1.42770776]
[1728158591095,0.33387,2396.2,2396.1,1.42772776]
[1728158591295,1.68387,2396.2,2396.1,3.64593515]
[1728158591490,1.35,2396.2,2396.1,3.09726998]
[1728158591802,1.68387,2396.2,2396.1,2.76337998]
[1728158591997,1.68387,2396.2,2396.1,1.09406186]
[1728158592197,1.35,2396.2,2396.0,1.09406186]
[1728158592400,0.74339,2396.1,2396.0,1.64272703]
[1728158592606,0.74339,2396.1,2396.0,3.3131349]
[1728158592796,0.74339,2396.1,2396.0,1.67040787]
[1728158593195,0.74339,2396.1,2396.0,3.6470349]
[1728158593397,0.74339,2396.1,2396.0,3.3131349]
[1728158595902,0.74339,2396.1,2396.0,3.31405491]
[1728158596299,0.74339,2396.1,2395.7,3.36359226]
[1728158596300,0.3339,2396.0,2395.9,1.09511089]
[1728158596596,1.35,2395.9,2395.7,1.09511089]
[1728158596795,1.35,2395.9,2395.6,1.64272703]
[1728158596796,5.5236,2395.9,2395.6,1.09511089]
[1728158596992,1.35,2395.7,2395.5,1.09511089]
[1728158597199,1.16736,2395.6,2395.5,1.09511089]
[1728158597400,1.56586,2395.6,2395.5,1.09511089]
[1728158598409,1.56586,2395.6,2395.4,4.30291089]
[1728158598602,1.35,2395.5,2395.4,1.09511089]
[1728158600308,1.35,2395.5,2395.3,1.42910089]
[1728158603412,1.35,2395.5,2395.3,0.33399]
[1728158603612,1.68397,2395.5,2395.2,4.63691089]
[1728158604912,1.68397,2395.5,2395.3,0.334]
[1728158605217,1.68397,2395.5,2395.2,1.09511089]
[1728158605516,1.68397,2395.5,2395.2,1.42911089]
[1728158605919,1.35,2395.3,2395.2,1.09511089]
[1728158606120,1.35,2395.3,2395.1,2.23263089]
[1728158606321,0.3957,2395.2,2395.1,2.23263089]
[1728158606618,0.3957,2395.2,2395.1,7.04581575]
[1728158606820,0.3957,2395.2,2395.1,10.12590486]
[1728158607214,0.3957,2395.2,2395.1,11.22101575]
[1728158607417,0.3957,2395.2,2395.1,10.12590486]
[1728158607819,1.35,2395.3,2395.1,10.12590486]
[1728158608118,1.7604,2395.3,2395.1,5.95070486]
[1728158608820,1.7604,2395.3,2395.1,5.95071486]
[1728158608821,1.35,2395.2,2395.1,5.95071486]
[1728158609019,1.35,2395.2,2395.1,5.61668486]
[1728158609207,1.35,2395.2,2395.1,9.79188486]
[1728158609720,1.35,2395.2,2395.1,10.12591486]
[1728158609925,1.35,2395.2,2395.1,9.79188486]
[1728158610316,1.68401,2395.2,2395.1,9.79188486]
[1728158610615,1.68401,2395.2,2395.1,5.61668486]
[1728158611015,1.68401,2395.2,2395.0,0.3961]
[1728158611412,1.68401,2395.2,2395.0,0.73014]
[1728158612214,1.35,2395.2,2395.0,0.73014]
[1728158615309,1.68401,2395.2,2395.0,0.73014]
[1728158615508,1.35,2395.2,2395.0,0.73014]
[1728158617822,1.35,2395.2,2395.0,0.3961]
[1728158618022,1.68402,2395.2,2395.0,0.3961]
[1728158618216,2.07162,2395.2,2395.0,0.3961]
[1728158618619,2.07162,2395.2,2395.0,0.73014]
[1728158619222,1.7376,2395.2,2395.0,0.3961]
[1728158619424,1.7376,2395.2,2394.9,0.8344]
[1728158619425,0.33404,2395.0,2394.9,0.8344]
[1728158619622,1.68404,2395.0,2394.9,0.8344]
[1728158619818,0.33407,2394.8,2394.7,0.4111]
[1728158620018,1.68407,2394.8,2394.7,0.4111]
[1728158621727,0.33408,2394.7,2394.6,0.8065]
[1728158621928,2.08228,2394.8,2394.6,0.8065]
[1728158622822,0.73228,2394.8,2394.6,0.8065]
[1728158623020,1.35,2394.7,2394.6,0.8065]
[1728158623417,1.68408,2394.7,2394.6,0.8065]
[1728158625823,2.57208,2394.7,2394.6,0.8065]
[1728158627531,0.3341,2394.6,2394.4,3.6155]
[1728158627733,1.35,2394.5,2394.4,4.77152]
[1728158635432,1.22209,2394.7,2394.4,4.77152]
[1728158635433,0.33406,2394.9,2394.7,0.33408]
[1728158635631,1.22206,2394.9,2394.8,1.2402]
[1728158635839,2.57206,2394.9,2394.8,1.2402]
[1728158641841,2.57206,2394.9,2394.8,1.57427]
[1728158642142,2.238,2394.9,2394.8,1.57427]
[1728158642346,2.57205,2394.9,2394.8,1.57427]
[1728158643138,2.57205,2394.9,2394.8,1.2402]
[1728158643744,1.68405,2394.9,2394.8,1.2402]
[1728158644047,1.68405,2394.9,2394.5,1.09511089]
[1728158644048,1.35,2394.9,2394.5,1.09511089]
[1728158644248,0.33405,2394.9,2394.7,0.33408]
[1728158644441,1.68408,2394.8,2394.6,0.73849]
[1728158644838,1.35,2394.8,2394.6,0.73849]
[1728158645039,0.33408,2394.7,2394.6,0.73849]
[1728158645646,0.33408,2394.7,2394.6,0.4044]
[1728158645851,0.76318,2394.7,2394.6,0.4044]
[1728158646947,0.3341,2394.6,2394.5,0.8353]
[1728158647139,2.1105,2394.6,2394.5,0.4191]
[1728158647339,1.7764,2394.6,2394.4,3.2078]
[1728158647541,0.33411,2394.5,2394.4,3.2078]
[1728158648148,0.33411,2394.5,2394.4,3.54192]
[1728158648945,1.7764,2394.6,2394.4,3.54192]
[1728158649242,0.33411,2394.5,2394.3,2.24334089]
[1728158649448,1.35,2394.4,2394.3,2.24334089]
[1728158652754,1.68412,2394.4,2394.3,1.90921089]
[1728158652954,1.68412,2394.4,2394.3,0.8141]
[1728158653150,2.09542,2394.4,2394.3,0.8141]
[1728158653347,2.09542,2394.4,2394.3,0.3979]
[1728158656763,2.09544,2394.4,2394.1,1.85167089]
[1728158656957,0.74544,2394.4,2394.2,0.8293]
[1728158657156,0.4264,2394.6,2394.2,0.8293]
[1728158657157,1.35,2394.3,2394.2,0.8293]
[1728158657455,1.35,2394.4,2394.2,1.92441089]
[1728158657655,1.35,2394.4,2394.3,0.33414]
[1728158657844,0.33412,2394.5,2394.3,0.33414]
[1728158657845,1.35,2394.5,2394.3,0.33414]
[1728158658045,1.35,2394.5,2394.4,0.33412]
[1728158658859,1.35,2394.5,2394.4,1.42923089]
[1728158659248,1.35,2394.5,2394.4,0.33412]
[1728158659454,1.35,2394.5,2394.4,1.42923089]
[1728158660154,1.35,2394.5,2394.4,1.09511089]
[1728158660355,1.35,2394.5,2394.4,1.42923089]
[1728158662759,1.35,2394.5,2394.4,1.09511089]
[1728158663460,1.35,2394.5,2394.4,2.76535283]
[1728158663858,1.35,2394.5,2394.4,2.76485172]
[1728158664158,1.35,2394.5,2394.4,2.76485627]
[1728158664361,1.35,2394.5,2394.4,3.31296897]
[1728158665562,1.35,2394.5,2394.4,3.64798167]
[1728158665757,1.35,2394.5,2394.4,3.31386167]
[1728158666061,1.35,2394.5,2394.4,3.31386091]
[1728158670168,1.35,2394.5,2394.4,3.31403674]
[1728158671368,1.68411,2394.5,2394.4,3.31403674]
[1728158671957,2.08051,2394.5,2394.4,2.76668509]
[1728158672157,2.08051,2394.5,2394.4,1.09537538]
[1728158676259,1.7464,2394.5,2394.3,1.09537538]
[1728158676468,1.68412,2394.4,2394.3,1.09537538]
[1728158676667,1.68412,2394.4,2394.3,3.3138548]
[1728158677264,1.68412,2394.4,2394.3,2.76636212]
[1728158677464,1.68412,2394.4,2394.3,3.3138548]
[1728158677967,1.68412,2394.4,2394.3,2.76634166]
[1728158679871,1.68412,2394.4,2394.3,3.3138548]
[1728158680073,1.68412,2394.4,2394.3,1.64272703]
[1728158680270,1.68412,2394.4,2394.3,2.76614006]
[1728158680871,1.68412,2394.4,2394.3,3.31371632]
[1728158681173,1.68412,2394.4,2394.3,1.67098929]
[1728158681470,1.68412,2394.4,2394.3,2.76613877]
[1728158681666,1.68412,2394.4,2394.3,1.67098929]
[1728158681875,1.68412,2394.4,2394.3,2.76612583]
[1728158682367,1.68412,2394.4,2394.3,3.31371632]
[1728158682868,1.68412,2394.4,2394.3,1.67098929]
[1728158683066,1.68412,2394.4,2394.3,3.31371632]
[1728158684677,1.68412,2394.4,2394.3,1.67098929]
[1728158684879,1.68412,2394.4,2394.3,3.31386589]
[1728158685070,1.35,2394.4,2394.3,3.31386589]
[1728158685272,1.35,2394.5,2394.4,0.33412]
[1728158685466,1.35,2394.5,2394.4,1.42938695]
[1728158686076,1.35,2394.5,2394.4,3.10056731]
[1728158686372,1.35,2394.5,2394.4,3.64802739]
[1728158686578,3.2078,2394.6,2394.5,0.33411]
[1728158686784,4.5578,2394.6,2394.5,3.51807506]
[1728158687178,4.5578,2394.6,2394.5,4.0655782]
[1728158687179,1.35,2394.6,2394.5,4.0655782]
[1728158687573,1.35,2394.6,2394.5,3.7314682]
[1728158689679,1.35,2394.6,2394.5,3.73196996]
[1728158690579,1.35,2394.6,2394.5,3.76926996]
[1728158690780,1.6841,2394.6,2394.5,3.76926996]
[1728158692081,1.35,2394.6,2394.5,3.76926996]
[1728158692379,1.6841,2394.6,2394.5,3.76926996]
[1728158694481,1.6841,2394.6,2394.5,3.76971389]
[1728158695477,1.35,2394.6,2394.5,3.76971389]
[1728158695677,1.35,2394.6,2394.5,4.15951389]
[1728158696076,1.6841,2394.6,2394.5,4.15951389]
[1728158699389,1.6841,2394.6,2394.5,4.15950859]
[1728158700783,0.3341,2394.6,2394.5,3.35210859]
[1728158700983,0.3341,2394.6,2394.5,1.13315844]
[1728158700984,9.0679,2394.6,2394.5,1.13315844]
[1728158701191,9.0679,2394.6,2394.5,0.0373]
[1728158703396,4.5101,2394.6,2394.5,0.0373]
[1728158703602,6.7451,2394.6,2394.5,1.13315844]
[1728158703898,0.3341,2394.6,2394.5,1.54095844]
[1728158704100,2.235,2394.6,2394.5,1.96195844]
[1728158704301,2.235,2394.6,2394.5,3.6341097]
[1728158704604,2.235,2394.6,2394.5,4.18097829]
[1728158704907,2.5691,2394.6,2394.5,4.18097829]
[1728158706506,2.5691,2394.6,2394.5,4.14367829]
[1728158706893,1.6841,2394.6,2394.5,4.14367829]
[1728158707505,1.6841,2394.6,2394.5,4.14366325]
[1728158712302,1.6841,2394.6,2394.5,4.14344176]
[1728158712504,1.35,2394.6,2394.5,4.14344176]
[1728158713011,1.6841,2394.6,2394.5,4.14344176]
[1728158714911,1.6841,2394.6,2394.5,3.59632179]
[1728158715113,1.6841,2394.6,2394.5,4.1432549]
[1728158715407,1.6841,2394.6,2394.5,2.50052787]
[1728158715610,1.6841,2394.6,2394.5,2.7673288]
[1728158715912,1.6841,2394.6,2394.4,1.09560093]
[1728158715913,0.33411,2394.5,2394.4,1.09560093]
[1728158716212,1.18111,2394.5,2394.4,1.09560093]
[1728158722117,0.847,2394.5,2394.3,1.09560093]
[1728158722312,1.68412,2394.4,2394.3,1.09560093]
[1728158722506,1.68412,2394.4,2394.3,2.76756593]
[1728158723010,1.68412,2394.4,2394.3,1.09560093]
[1728158723208,0.33414,2394.3,2394.2,1.52330093]
[1728158727115,0.33414,2394.3,2394.2,0.4277]
[1728158729412,1.21914,2394.3,2394.2,0.4277]
[1728158737124,0.33415,2394.2,2394.1,1.50340093]
[1728158737330,2.10645,2394.2,2394.1,0.4078]
[1728158740120,5.9491,2394.2,2393.9,1.49010093]
[1728158740318,0.33419,2393.9,2393.8,1.51690093]
[1728158740517,4.5578,2394.0,2393.7,1.09560093]
[1728158740717,1.768,2393.8,2393.6,1.09560093]
[1728158740913,5.22632,2393.7,2393.6,1.09560093]
[1728158741114,5.22632,2393.7,2393.5,1.64272703]
[1728158741115,4.8921,2393.7,2393.5,1.09560093]
[1728158741314,1.35,2393.6,2393.5,1.09560093]
[1728158741520,3.2078,2394.0,2393.5,5.84756263]
[1728158741725,0.097,2394.4,2393.8,1.09450317]
[1728158741924,1.35,2394.3,2394.2,0.33415]
[1728158742425,3.2078,2394.5,2394.0,1.48360317]
[1728158742726,3.2078,2394.5,2394.3,1.09450317]
[1728158742727,4.5578,2394.5,2394.3,1.09450317]
[1728158742927,4.5578,2394.5,2394.4,0.8046]
[1728158743114,4.5578,2394.5,2394.4,1.13872]
[1728158744123,4.5578,2394.5,2394.4,0.8046]
[1728158744817,4.89191,2394.5,2394.4,0.8046]
[1728158749030,1.68411,2394.5,2394.4,0.8046]
[1728158749327,4.89191,2394.5,2394.4,0.8046]
[1728158749720,4.5578,2394.5,2394.4,0.8046]
[1728158750425,4.89191,2394.5,2394.4,0.8046]
[1728158752027,1.68411,2394.5,2394.4,0.8046]
[1728158755240,1.68411,2394.5,2394.4,0.8419]
[1728158756037,5.86011,2394.5,2394.4,0.0373]
[1728158757734,11.86011,2394.5,2394.4,0.0373]
[1728158759537,5.86011,2394.5,2394.4,0.0373]
[1728158759835,11.86011,2394.5,2394.4,0.0373]
[1728158760437,5.86011,2394.5,2394.4,0.0373]
[1728158761537,11.86011,2394.5,2394.4,0.0373]
[1728158761931,5.86011,2394.5,2394.4,0.0373]
[1728158762327,11.86011,2394.5,2394.4,0.0373]
[1728158762531,6.74511,2394.5,2394.4,0.0373]
[1728158763641,1.68411,2394.5,2394.4,0.0373]
[1728158763840,2.56911,2394.5,2394.4,0.0373]
[1728158766642,6.74511,2394.5,2394.4,0.0373]
[1728158767441,12.74511,2394.5,2394.4,0.0373]
[1728158768342,13.54951,2394.5,2394.4,0.0373]
[1728158768932,0.33418,2394.0,2393.9,0.7918]
[1728158769136,0.33418,2394.0,2393.9,1.49730317]
[1728158769336,0.33418,2394.0,2393.9,0.4028]
[1728158770735,1.21818,2394.0,2393.9,0.4028]
[1728158771445,0.33419,2393.9,2393.8,1.92040317]
[1728158771745,2.09299,2393.9,2393.8,0.8259]
[1728158775041,2.09299,2393.9,2393.8,0.4061]
[1728158777845,2.56819,2393.9,2393.8,0.4061]
[1728158785937,2.56819,2393.9,2393.6,1.51730317]
[1728158785938,6.4116,2393.9,2393.6,1.51730317]
[1728158786244,6.4116,2393.9,2393.1,4.174]
[1728158786245,0.33425,2393.5,2393.2,1.64050317]
[1728158786435,1.35,2393.4,2393.0,1.09450317]
[1728158786636,1.35,2393.2,2392.9,1.09450317]
[1728158786840,0.33431,2393.1,2392.9,1.09450317]
[1728158787042,1.35,2393.2,2392.9,1.09450317]
[1728158787043,0.33432,2393.0,2392.9,1.09450317]
[1728158787246,0.33432,2393.0,2392.9,2.76309397]
[1728158787545,1.35,2393.1,2392.9,5.27370317]
[1728158787738,1.35,2393.1,2392.9,1.09450317]
[1728158787934,0.33432,2393.0,2392.9,1.09450317]
[1728158788446,0.33432,2393.0,2392.9,4.1792]
[1728158789349,0.33432,2393.0,2392.9,5.4129]
[1728158790343,0.33432,2393.0,2392.9,0.3948]
[1728158790544,0.33432,2393.0,2392.9,1.2267]
[1728158791949,0.75922,2393.0,2392.9,1.2267]
[1728158796145,1.57852,2393.0,2392.9,1.2267]
[1728158796353,1.57852,2393.0,2392.9,0.3948]
[1728158797751,0.33436,2392.8,2392.5,1.17369]
[1728158797953,0.33436,2392.8,2392.6,0.4118]
[1728158797954,1.68436,2392.8,2392.6,0.4118]
[1728158798151,1.68436,2392.8,2392.6,5.08327627]
[1728158798450,1.35,2392.8,2392.6,5.41764627]
[1728158798750,0.884,2392.9,2392.6,5.08327627]
[1728158799052,2.56834,2392.9,2392.7,0.33436]
[1728158799650,2.234,2392.9,2392.6,5.08327627]
[1728158799850,0.33435,2392.8,2392.6,5.41764627]
[1728158802461,2.234,2392.9,2392.6,5.08327627]
[1728158802654,1.35,2392.7,2392.6,0.4118]
[1728158802851,1.35,2392.7,2392.3,4.30230317]
[1728158803066,2.07498,2392.6,2392.4,0.7387]
[1728158803267,0.33439,2392.5,2392.4,4.87390303]
[1728158803471,1.7406,2392.6,2392.4,9.05390303]
[1728158803671,0.33439,2392.5,2392.4,9.05390303]
[1728158805671,0.885,2392.6,2392.5,0.33439]
[1728158805874,0.885,2392.6,2392.5,4.51439]
[1728158806470,1.35,2392.7,2392.6,0.33438]
[1728158809669,0.4142,2392.9,2392.4,0.4043]
[1728158809977,0.4142,2392.9,2392.7,0.33435]
[1728158809978,1.35,2392.8,2392.7,0.33435]
[1728158815174,1.35,2392.8,2392.6,3.2078]
[1728158815378,1.35,2392.8,2392.7,0.33436]
[1728158822175,1.35,2392.8,2392.7,0.74716]
[1728158824677,1.35,2392.8,2392.7,1.15436]
[1728158825681,1.35,2392.8,2392.7,1.54916]
[1728158827583,0.4142,2392.9,2392.7,1.2148]
[1728158827781,1.7642,2392.9,2392.8,0.33435]
[1728158828184,1.35,2392.9,2392.8,0.33435]
[1728158830086,0.93273,2393.3,2393.2,0.33429]
[1728158830087,0.43129,2393.3,2393.2,0.33429]
[1728158830280,0.097,2393.6,2393.2,12.51970862]
[1728158830485,2.6797,2393.8,2393.2,12.51970862]
[1728158830486,2.2397,2393.8,2393.7,0.33422]
[1728158830680,0.4212,2393.9,2393.8,0.33421]
[1728158830681,1.7712,2393.9,2393.8,0.33421]
[1728158830987,0.4212,2393.9,2393.8,0.33421]
[1728158831187,1.35,2393.9,2393.8,0.33421]
[1728158831389,0.4037,2394.1,2394.0,0.33418]
[1728158831588,2.10536,2394.2,2394.0,1.09391211]
[1728158832285,2.10536,2394.2,2394.0,1.42809211]
[1728158832492,2.10536,2394.2,2394.0,0.33418]
[1728158832793,1.7712,2394.2,2394.0,0.33418]
[1728158833196,2.10536,2394.2,2393.9,1.09391211]
[1728158833489,2.10536,2394.2,2394.0,4.38828248]
[1728158833686,2.10536,2394.2,2394.0,4.72246248]
[1728158833885,2.10536,2394.2,2394.0,4.38828248]
[1728158834483,2.10536,2394.2,2394.0,4.72246248]
[1728158835284,1.7712,2394.2,2394.0,4.38828248]
[1728158835492,0.4055,2394.1,2393.8,0.7462]
[1728158835684,0.4055,2394.1,2393.6,1.64272703]
[1728158835685,1.35,2393.9,2393.6,1.09391211]
[1728158835884,1.35,2393.9,2393.4,1.09391211]
[1728158835885,2.1904,2393.8,2393.4,1.09391211]
[1728158836094,0.33427,2393.4,2393.2,0.33429]
[1728158836398,1.68427,2393.4,2393.2,0.33429]
[1728158836992,1.68427,2393.4,2393.0,2.22262211]
[1728158836993,0.33429,2393.3,2393.0,2.22262211]
[1728158837294,1.35,2393.2,2393.1,4.69524611]
[1728158837495,1.7691,2393.3,2393.2,0.33429]
[1728158837691,0.4243,2393.6,2393.3,0.33427]
[1728158837692,0.33424,2393.6,2393.3,0.33427]
[1728158837888,1.35,2393.6,2393.2,4.84963302]
[1728158838090,0.9051,2393.8,2393.4,4.84963302]
[1728158838289,1.35,2393.9,2393.6,0.33424]
[1728158838496,1.35,2393.9,2393.5,1.22]
[1728158838690,1.35,2393.9,2393.7,5.18384302]
[1728158838996,1.35,2393.8,2393.7,4.84963302]
[1728158839192,1.68421,2393.8,2393.7,4.84963302]
[1728158839388,1.35,2393.8,2393.5,0.803]
[1728158839585,3.3264,2393.7,2393.3,0.43127]
[1728158839793,0.33426,2393.5,2393.2,0.74429]
[1728158839991,0.33426,2393.5,2393.2,0.41]
[1728158840193,0.33426,2393.5,2393.3,5.05304957]
[1728158840389,0.33426,2393.5,2393.3,4.71877957]
[1728158840698,0.33426,2393.5,2393.3,5.05304957]
[1728158840994,3.3264,2393.7,2393.3,5.05304957]
[1728158841195,0.33424,2393.6,2393.3,5.05304957]
[1728158841395,0.33424,2393.6,2393.4,0.33426]
[1728158841600,0.33424,2393.6,2393.3,5.05304957]
[1728158844199,4.2704,2393.7,2393.3,5.05304957]
[1728158844404,0.33425,2393.6,2393.3,5.05304957]
[1728158845197,0.33424,2393.6,2393.3,5.05304957]
[1728158846102,0.33425,2393.5,2393.3,5.05304957]
[1728158846802,0.33425,2393.6,2393.3,5.05304957]
[1728158847003,4.2704,2393.7,2393.3,5.05304957]
[1728158847196,0.33426,2393.5,2393.3,5.05304957]
[1728158847393,2.93,2393.5,2393.2,0.41]
[1728158847605,0.33429,2393.3,2393.0,3.2078]
[1728158847798,0.33429,2393.3,2393.1,0.3343]
[1728158847994,0.33429,2393.3,2393.1,5.03248621]
[1728158848692,0.4057,2393.3,2393.1,4.69818621]
[1728158848901,0.33429,2393.2,2393.0,3.95952]
[1728158849097,1.13848,2393.3,2393.1,0.3343]
[1728158849799,1.13848,2393.3,2393.0,0.4174]
[1728158850004,1.13848,2393.3,2393.1,0.3343]
[1728158851604,1.13848,2393.3,2393.2,0.0373]
[1728158853210,0.72897,2393.4,2393.2,0.37159]
[1728158853506,0.72897,2393.4,2393.3,0.33428]
[1728158853507,0.3947,2393.4,2393.3,0.33428]
[1728158853703,0.3947,2393.4,2393.3,0.73958]
[1728158854703,1.15474,2393.6,2393.4,0.33426]
[1728158855008,1.15474,2393.6,2393.5,4.35938875]
[1728158858607,0.33425,2393.5,2393.4,0.3922]
[1728158859811,3.54205,2393.5,2393.4,0.3922]
[1728158862208,3.54205,2393.5,2393.2,0.0373]
[1728158862209,0.33428,2393.3,2393.2,0.0373]
[1728158862815,0.73408,2393.3,2393.2,0.0373]
[1728158866112,3.94188,2393.3,2393.2,0.0373]
[1728158866830,3.94188,2393.3,2392.9,1.16632]
[1728158866831,3.6076,2393.3,2392.9,1.16632]
[1728158867016,0.33431,2393.1,2392.9,1.16632]
[1728158871728,0.33431,2393.1,2393.0,0.33432]
[1728158872619,0.33431,2393.1,2392.9,0.832]
[1728158873713,0.33431,2393.1,2393.0,0.33432]
[1728158873915,0.33431,2393.1,2392.9,1.16633]
[1728158874523,0.33431,2393.1,2392.9,1.92295723]
[1728158874724,0.33431,2393.1,2393.0,0.33432]
[1728158874927,2.1869,2393.2,2393.0,0.33432]
[1728158875125,2.5212,2393.2,2393.0,0.33432]
[1728158876824,3.4542,2393.2,2393.0,0.33432]
[1728158877729,0.33431,2393.1,2392.9,1.92295723]
[1728158878129,0.33431,2393.1,2392.9,2.25728723]
[1728158878433,0.33431,2393.1,2393.0,0.33432]
[1728158878632,0.33431,2393.1,2392.9,2.25728723]
[1728158878833,0.33431,2393.1,2393.0,0.33432]
[1728158879033,0.33431,2393.1,2392.9,2.25727723]
[1728158879631,3.4542,2393.2,2393.0,0.33431]
[1728158881028,3.4542,2393.2,2392.9,1.92295723]
[1728158881029,0.33431,2393.1,2392.9,2.25728723]
[1728158881427,0.33431,2393.1,2393.0,1.09095723]
[1728158881832,0.33432,2393.0,2392.9,1.09095723]
[1728158882028,0.33432,2393.0,2392.8,1.63643585]
[1728158882029,0.33433,2392.9,2392.8,1.09095723]
[1728158883532,0.33433,2392.9,2392.7,1.49335723]
[1728158883730,0.4009,2392.8,2392.7,1.49335723]
[1728158883931,0.4009,2392.8,2392.7,3.16054273]
[1728158884335,1.7509,2392.8,2392.7,3.49490273]
[1728158884729,2.08525,2392.8,2392.7,3.49490273]
[1728158884946,1.7509,2392.8,2392.7,3.16054985]
[1728158885128,2.08525,2392.8,2392.7,3.16054985]
[1728158885533,2.08525,2392.8,2392.7,3.49490985]
[1728158885534,1.7509,2392.8,2392.7,3.49490985]
[1728158886036,2.08525,2392.8,2392.7,3.49490985]
[1728158886234,2.08525,2392.8,2392.7,3.16054985]
[1728158886432,2.08525,2392.8,2392.7,1.49335723]
[1728158886735,2.08525,2392.8,2392.7,3.16057123]
[1728158886932,2.08525,2392.8,2392.7,2.75817123]
[1728158887239,0.33436,2392.7,2392.6,1.09095723]
[1728158887423,1.65536,2392.7,2392.6,1.09095723]
[1728158887727,3.00536,2392.7,2392.6,1.09095723]
[1728158889435,0.33438,2392.6,2392.5,2.03853585]
[1728158889740,0.33438,2392.6,2392.5,3.70551356]
[1728158890231,0.33438,2392.6,2392.5,2.06907771]
[1728158890437,0.33438,2392.6,2392.5,3.70551356]
[1728158890734,0.33438,2392.6,2392.5,1.49659263]
[1728158891033,0.33438,2392.6,2392.5,1.09449263]
[1728158891225,2.671,2392.7,2392.4,1.93809263]
[1728158891432,0.33438,2392.6,2392.5,1.09449263]
[1728158891740,0.33438,2392.6,2392.5,5.48174536]
[1728158892334,0.33438,2392.6,2392.5,4.38725273]
[1728158892532,0.33438,2392.6,2392.5,5.48174536]
[1728158893629,0.33438,2392.6,2392.5,4.38725273]
[1728158897335,0.33442,2392.3,2392.2,1.62099263]
[1728158897529,1.35,2392.3,2392.2,0.4295]
[1728158897735,1.35,2392.3,2392.2,0.76393]
[1728158897935,1.68442,2392.3,2392.2,0.76393]
[1728158898235,1.68442,2392.3,2392.0,1.42894263]
[1728158898236,0.33443,2392.2,2392.0,1.42894263]
[1728158898439,0.33443,2392.2,2392.0,0.33446]
[1728158898440,1.35,2392.1,2392.0,0.33446]
[1728158898745,1.35,2392.1,2391.9,5.49809263]
[1728158898945,0.4001,2392.0,2391.9,5.83255263]
[1728158899239,0.4001,2392.0,2391.9,5.10719263]
[1728158899240,1.35,2392.0,2391.9,5.10719263]
[1728158899440,1.7501,2392.0,2391.8,1.09449263]
[1728158899643,1.7501,2392.0,2391.7,1.09449263]
[1728158899850,0.4001,2392.0,2391.9,0.33447]
[1728158900146,0.4001,2392.0,2391.8,0.33448]
[1728158900147,0.912,2392.0,2391.8,0.33448]
[1728158900641,0.912,2392.0,2391.9,0.3984]
[1728158901347,1.24646,2392.0,2391.9,0.3984]
[1728158901635,0.912,2392.0,2391.9,0.3984]
[1728158902345,1.24646,2392.0,2391.9,0.3984]
[1728158902641,0.912,2392.0,2391.9,0.3984]
[1728158903242,1.24646,2392.0,2391.9,0.3984]
[1728158903639,4.9499,2392.1,2391.9,0.3984]
[1728158903840,5.4698,2392.1,2392.0,0.33446]
[1728158904644,5.80425,2392.1,2391.9,1.13177]
[1728158904841,5.80425,2392.1,2391.9,0.7973]
[1728158905042,0.3966,2392.0,2391.9,0.7973]
[1728158905238,0.3966,2392.0,2391.9,0.3984]
[1728158905439,0.73106,2392.0,2391.9,0.3984]
[1728158907249,0.73106,2392.0,2391.5,1.63643585]
[1728158907250,0.33451,2391.7,2391.5,1.09449263]
[1728158907441,3.2078,2391.8,2391.6,0.4152]
[1728158907638,0.33443,2392.2,2391.8,0.33449]
[1728158907945,1.35,2392.2,2391.9,5.79635313]
[1728158908147,2.98714,2392.2,2391.9,6.13082313]
[1728158908343,0.33445,2392.1,2391.9,1.2415]
[1728158908644,0.73165,2392.1,2391.9,1.2415]
[1728158910240,1.7472,2392.1,2391.9,1.2415]